Cogmind - Beta 15 *** ADVENTURER MODE // 2025.09.21 @ 04:58:15 Player: Olexender Result: Destroyed by NO-0XR(R) with Subdweller Laser Performance ------------- Evolutions (0) 0 Regions Visited (2) 400 Robots Destroyed (12) 60 Value Destroyed (306) 306 Prototype IDs (11) 220 Alien Tech Used (0) 0 Bonus (0) 0 TOTAL SCORE: 986 Bonus ------- None Cogmind --------- Core Integrity 0/250 Matter 200/300 Energy 85/100 System Corruption 0% Temperature Cool (6) Movement Core (200) Ox3 Location -10/Subcaves Parts ------- > --- POWER (1) -------- (None) > --- PROPULSION (2) --- (None) > --- UTILITY (2) ------ Small Storage Unit > --- WEAPON (2) ------- Particle Gun Heavy Assault Rifle > --- INVENTORY (8) ---- Large Storage Unit High-capacity Matter Pod (200) Heavy Assault Rifle Heavy Assault Rifle Peak State ------------ > --- POWER ------------ Ion Engine > --- PROPULSION ------- Aluminum Leg Aluminum Leg > --- UTILITY ---------- Small Storage Unit > --- WEAPON ----------- Particle Gun Heavy Assault Rifle > --- INVENTORY -------- Large Storage Unit High-capacity Matter Pod Particle Gun Particle Gun Heavy Assault Rifle Heavy Assault Rifle [Rating: 9] Favorites ----------- Power Ion Engine Engine Ion Engine Propulsion Aluminum Leg Leg Aluminum Leg Utility Small Storage Unit Storage Small Storage Unit Weapon Particle Gun Energy Gun Particle Gun Ballistic Gun Heavy Assault Rifle Launcher Subdweller Shrapnel Launcher Build | -11 -10 -10 ------- Run | Yrd Mat Sub Slots Evolved . | . . . Power . | . . . Propulsion . | . . . Utility . | . . . Weapon . | . . . Parts Attached 14 | 6 2 6 Power 1 | 1 . . Engine 1 | 1 . . Core . | . . . Reactor . | . . . Propulsion 3 | 2 . 1 Treads . | . . . Leg 3 | 2 . 1 Wheel . | . . . Hover . | . . . Flight . | . . . Utility 1 | 1 . . Device . | . . . Storage 1 | 1 . . Processor . | . . . Hackware . | . . . Protection . | . . . Artifact . | . . . Weapon 9 | 2 2 5 Energy Gun 4 | 1 1 2 Energy Cannon . | . . . Ballistic Gun 4 | 1 1 2 Ballistic Cannon . | . . . Launcher 1 | . . 1 Special Weapon . | . . . Impact Weapon . | . . . Slashing Weapon . | . . . Piercing Weapon . | . . . Special Melee Weapon . | . . . Unidentified Prototypes . | . . . Parts Lost 6 | . . 6 Power 1 | . . 1 Propulsion 2 | . . 2 Utility . | . . . Weapon 3 | . . 3 Highest Loss Streak 5 | . . 5 To Critical Strikes . | . . . Average Backups 6 | . 4 7 Power . | . . . Propulsion . | . . . Utility 1 | . 1 2 Weapon 4 | . 3 4 Tool/Special . | . . . Unused Backups 5 | . 1 4 Power . | . . . Propulsion . | . . . Utility 2 | . . 2 Weapon 3 | . 1 2 Tool/Special . | . . . Average Slot Usage (%) 76 | . 85 74 Engine 6 | . 14 4 Leg 27 | . 28 26 Storage 14 | . 14 14 Energy Gun 13 | . 14 13 Ballistic Gun 13 | . 14 13 Launcher 1 | . . 1 Peak Build Rating 9 | 6 9 9 Average Rating 8 | 4 8 8 On Entrance 5 | . 6 9 Naked Turns . | . . . Heaviest Build 16 | 14 16 16 Greatest Support 20 | 20 20 20 Greatest Overweight (x) 4 | 4 . 3 Average Overweight (x) . | . . . Largest Inventory Capacity 8 | 8 8 8 Average Capacity 7 | 7 8 8 Most Carried 8 | 1 6 8 Average Carried 6 | . 5 7 Final Capacity 8 | 8 8 8 Final Carried 6 | 1 6 4 Class Distribution -------------------- 100% | Mutant Dominant Class ---------------- Mutant | -10/Materials Mutant | -10/Subcaves Resources | -11 -10 -10 ----------- Run | Yrd Mat Sub Matter Collected 722 | 156 133 433 Remotely . | . . . Salvage Created 341 | . 78 263 Parts 24 | . 7 17 Haulers Intercepted . | . . . Recyclers Shooed . | . . . Parts Field Recycled . | . . . Retrieved Matter . | . . . Parts Self-Destructed 5 | . . 5 Prevented . | . . . Kills | -11 -10 -10 ------- Run | Yrd Mat Sub Combat Hostiles Destroyed 12 | . 6 6 Guns 12 | . 6 6 Classes Destroyed 4 | . 1 3 Swarmer 6 | . 6 . Grunt 2 | . . 2 Sentry 1 | . . 1 Subdweller 3 | . . 3 Best Kill Streak 3 | . 3 2 Combat Bots Only 3 | . 3 2 Max Kills in Single Turn 2 | . 2 1 Gunslinging 1 | . 1 . Exploded . | . . . Melee . | . . . Uniques/NPCs Destroyed . | . . . Combat | -11 -10 -10 -------- Run | Yrd Mat Sub Hostile Shots Fired 75 | . 11 64 Missed 14 | . 4 10 Hits 61 | . 7 54 Projectile 61 | . 7 54 Critical Strikes 1 | . . 1 Damage Taken 984 | . 44 940 Core 252 | . 15 237 Absorbed by Shields . | . . . Ignored by Resistances 250 | . 14 236 Core Remaining (%) 100 | 100 . . Volleys Fired 61 | . 10 51 Largest 2 | . 2 2 Hottest 90 | . 88 90 Shots Fired 105 | . 20 85 Gun 99 | . 20 79 Cannon . | . . . Launcher 6 | . . 6 Special . | . . . Kinetic 60 | . 10 50 Thermal 45 | . 10 35 Explosive . | . . . Electromagnetic . | . . . Robot Hit Streak 14 | . 2 14 Robot Miss Streak 3 | . 2 3 Penetration Max . | . . . Secondary Targets 2 | . 1 1 Max Gunslinging Chain 1 | . 1 1 Shots Hit Robots 60 | . 10 50 Core Hits 19 | . 6 13 Critical Kills . | . . . Critical Parts Destroyed 1 | . . 1 Critical Strikes 2 | . . 2 Burn 1 | . . 1 Destroy 1 | . . 1 Melee Attacks . | . . . Impact . | . . . Slashing . | . . . Piercing . | . . . Sneak Attacks . | . . . Combat Hostiles . | . . . Follow-up Attacks . | . . . Damage Inflicted 665 | . 148 517 Guns 665 | . 148 517 Cannons . | . . . Explosions . | . . . Melee . | . . . Ramming . | . . . Kinetic 383 | . 70 313 Thermal 282 | . 78 204 Explosive . | . . . Electromagnetic . | . . . Impact . | . . . Slashing . | . . . Piercing . | . . . Highest Corruption . | . . . Average Corruption . | . . . Corruption Purged . | . . . Corruption Blocked . | . . . Overload Shots . | . . . Overflow Damage . | . . . Projectiles . | . . . Explosions . | . . . Melee . | . . . Knockbacks . | . . . Impact . | . . . Kinetic . | . . . Secondary . | . . . Self-Inflicted Damage 57 | . . 57 Shots 2 | . . 2 Rammed . | . . . Targets Rammed . | . . . Kicked . | . . . Crushed . | . . . Highest Temperature 81 | . 81 12 Average Temperature 25 | . 30 7 Received Heat Transfer 330 | . . 330 Siege Activations . | . . . Martial Activations . | . . . Shielding Activations . | . . . Robots Disrupted . | . . . Combat Hostiles . | . . . Robots Corrupted . | . . . Combat Hostiles . | . . . Parts Fried . | . . . Impact Corruptions . | . . . Robots Melted . | . . . Combat Hostiles . | . . . Parts Melted 1 | . . 1 Heat Transferred 777 | . 185 592 Parts Sabotaged . | . . . Parts Stolen . | . . . Parts Stripped . | . . . Power Chain Reactions . | . . . Alert | -11 -10 -10 ------- Run | Yrd Mat Sub Maximum Alert Level . | . . . Low Security (%) 100 | 100 100 . Level 1 . | . . . Level 2 . | . . . Level 3 . | . . . Level 4 . | . . . Level 5 . | . . . High Security . | . . . Max Security . | . . . Peak Influence 105 | . 105 . Initial . | . . . Average 42 | . 47 . Influence Increases 270 | . 155 115 Destroy 0b10 Robot/C 180 | . 120 60 Destroy Leader 30 | . 20 10 Lose Combat Pursuer 60 | . 15 45 Influence Decreases 270 | . 120 150 Entered New Map 20 | . . 20 Time Decay 240 | . 120 120 Lost Part 10 | . . 10 Squads Dispatched . | . . . Investigation . | . . . Extermination . | . . . Reinforcement . | . . . Assault . | . . . Garrison . | . . . Intercept . | . . . Searches Triggered . | . . . Construction Impeded . | . . . Haulers Reinforced . | . . . Active Scanning Responses . | . . . Cargo Convoy Interrupts . | . . . Stealth | -11 -10 -10 --------- Run | Yrd Mat Sub Distress Signals 1 | . 1 . Communications Jammed . | . . . Distress Signals . | . . . Times Spotted 18 | . 9 9 Peak Tracking Total 3 | . 3 3 Tactical Retreats 4 | . 1 3 Traps | -11 -10 -10 ------- Run | Yrd Mat Sub Traps Triggered 2 | . . 2 Indirectly . | . . . Trap Hack Attempts . | . . . Triggered . | . . . Disarmed . | . . . Reprogrammed . | . . . Reused . | . . . Traps Extracted . | . . . Installed . | . . . Triggered . | . . . Machines | -11 -10 -10 ---------- Run | Yrd Mat Sub Machines Disabled . | . . . Max in Single Turn . | . . . Machines Repaired . | . . . Machines Dismantled . | . . . Machines Sabotaged . | . . . Overloaded Fab Kills . | . . . Hacking | -11 -10 -10 --------- Run | Yrd Mat Sub Machines Accessed 4 | . 2 2 Terminals . | . . . Fabricators . | . . . Repair Stations . | . . . Recycling Units 2 | . 2 . Scanalyzers . | . . . Garrison Access . | . . . Total Hacks 17 | . 3 14 Successful 17 | . 3 14 Failed . | . . . Catastrophic . | . . . Database Lockouts . | . . . Manual . | . . . Terminals . | . . . Fabricators . | . . . Repair Stations . | . . . Recycling Units 3 | . 3 . Scanalyzers . | . . . Garrison Access . | . . . Terminal Hacks 14 | . . 14 Record 13 | . . 13 Proto ID Catalog 1 | . . 1 Fabricator Hacks . | . . . Repair Station Hacks . | . . . Recycling Unit Hacks 3 | . 3 . Report Inventory 2 | . 2 . Retrieve Components 1 | . 1 . Scanalyzer . | . . . Garrison Access Hacks . | . . . Unauthorized Hacks . | . . . Terminals . | . . . Fabricators . | . . . Repair Stations . | . . . Recycling Units . | . . . Scanalyzers . | . . . Garrison Access . | . . . Data Cores Recovered . | . . . Used . | . . . Hacking Detections . | . . . Full Trace Events . | . . . Feedback Events . | . . . Feedback Blocked . | . . . Robot Schematics Acquired . | . . . Robots Built . | . . . Authchips . | . . . Time . | . . . Total Robot Build Rating . | . . . Part Schematics Acquired . | . . . Parts Built . | . . . Authchips . | . . . Time . | . . . Total Part Build Rating . | . . . Parts Repaired . | . . . Time . | . . . Parts Recycled . | . . . Recycled Matter . | . . . Retrieved Matter . | . . . Retrieved Components 1 | . 1 . Parts Scanalyzed . | . . . Part Schematics Acquired . | . . . Parts Damaged . | . . . Bothacking | -11 -10 -10 ------------ Run | Yrd Mat Sub Used RIF Installer . | . . . Robots Hacked . | . . . Non-combat . | . . . Combat . | . . . Robot Hacks Applied . | . . . Relay Couplers Released . | . . . Fabnet Peak Effective % . | . . . Robots Rewired . | . . . Allies Hacked . | . . . Hacks Repelled . | . . . Allies | -11 -10 -10 -------- Run | Yrd Mat Sub Total Allies . | . . . Largest Group . | . . . Highest-Rated Group . | . . . Highest-Rated Ally . | . . . Total Orders . | . . . Ally Attacks . | . . . Total Damage . | . . . Kills . | . . . Allies Corrupted . | . . . Allies Melted . | . . . Intel | -11 -10 -10 ------- Run | Yrd Mat Sub Active Infowar (turns) . | . . . Robot Analysis Total . | . . . Derelict Logs Recovered . | . . . Drone Launches . | . . . Drone Recoveries . | . . . Exploration | -11 -10 -10 ------------- Run | Yrd Mat Sub Turns Passed 1516 | 42 329 1145 Spaces Moved 1017 | 25 177 815 Core 17 | 10 . 7 Treads . | . . . Legs 1000 | 15 177 808 Wheels . | . . . Hover . | . . . Flight . | . . . Fastest Speed 50 | 50 120 120 Average Speed 120 | 130 120 120 Slowest Speed 250 | 250 120 200 Overloaded Moves . | . . . Propulsion Burnouts . | . . . Robots Hopped . | . . . Potential Cave-ins . | . . . Cave-ins Triggered . | . . . Exploration Rate (%) 24 | 3 33 36 Regions Visited 2 Branch Regions 1 Pre-discovered Areas . | . . . Known Exits Taken . | . . . Unknown Exits Taken 2 | 1 1 . Scrap Searched 7 | . . 7 Spaces Dug 67 | . . 67 Terrain Destroyed 83 | . . 83 Melee . | . . . Projectile . | . . . AOE 83 | . . 83 Terrain Rammed . | . . . Walls Destroyed . | . . . Machines Disabled . | . . . Actions | -11 -10 -10 --------- Run | Yrd Mat Sub Total 1191 | 31 274 886 Wait 79 | . 75 4 Move 1015 | 24 176 815 Hop . | . . . Pick Up 13 | 1 8 4 Fast Attach 6 | 6 . . Attach 4 | . . 4 Detach . | . . . Swap 7 | . 2 5 Drop 6 | . 3 3 Fire 61 | . 10 51 Melee . | . . . Ram . | . . . Kick . | . . . Crush . | . . . Escape Stasis . | . . . Rewire . | . . . Trap . | . . . Miscellaneous . | . . . Route ------- -11/Scrapyard -10/Materials -10/Subcaves History --------- Turn | Location | Event 5 | -11/Scrapyard | Discovered new exit (range 16) 43 | -11/Scrapyard | Entered Materials 317 | -10/Materials | Build established: Mutant 361 | -10/Materials | Discovered new exit (range 8) 372 | -10/Materials | Entered Subcaves 761 | -10/Subcaves | Disturbed a concealed Subdweller 1002 | -10/Subcaves | Visited 4L-MR0's lab 1396 | -10/Subcaves | Visited Clippyterm 1400 | -10/Subcaves | Learned Research machine intel 1400 | -10/Subcaves | Learned 40 Factory zone layouts 1439 | -10/Subcaves | A swath of the cavern ceiling suddenly collapsed 1471 | -10/Subcaves | Core integrity fell below 50% 1504 | -10/Subcaves | Core integrity fell below 20% 1517 | -10/Subcaves | Destroyed by NO-0XR(R) with Subdweller Laser Last Messages --------------- It looks like you're biased against spaces, I think you need more help than I can offer. >>Record "LU-1G1" It looks like you're researching the legendary digger of dangerously deep tunnels, unfortunately it seems not even members of the Boring Crew know what became of that one. 01432_ Acquired 9 matter. 01436_ Acquired 15 matter. 01437_ Acquired 13 matter. 01439_ 13 Matter crushed. 01439_ Y-45 Defender crushed by falling debris. A swath of the cavern ceiling suddenly collapses. 01466_ Aluminum Leg destroyed. 01475_ Battle Rifle destroyed. 01476_ Particle Gun destroyed. 01478_ Aluminum Leg destroyed. 01505_ IU-MHE(R) destroyed. 01507_ Particle Gun destroyed. Map ----- +----------------------------------------------------+ | ???????# ###???????? | | ?????### ### # "#######????? | | ?????# ##?## ## "### ##"""# | | ?????# #???# ### # """" | | ?????# ##???#### """" "" | | ?????# ####???????# """" "" | | ?????## ### ##??????????## """######" | | ??????## ## ### ##?????????### """"##????? " | | ???????## ####?# #?????????# # " """#??????" | | ????????# ##??## ##???######## """##??????? | | ???????## #???## #????#"""""# #" ##???????? | | ???????# #????###????#""X""# # #????????? | | ???????## ##???????????#" "## ###????????? | | ???????## #????????????### #### ##??????????? | | ???????# ##???????????#### ### #??????????? | | ???????# ## ####????????## # #??????????? | | ???????#### #????????# ##?????????? | | ???????# ##???????## #?????????? | | ???????## #????????# ##?????????? | | ????????### #????#### ##??????????? | | ??????????## #???# # ###???????????? | | ???????????## #?#### ## ## #?????????????? | | ????????????# ### ### ##### # #?????????????? | | ????????????###??#### ### # # #????????????? | | ???????????#??####?## !R[ #????????????? | | ???????????#"## ## ##@ # # ##????????????? | | ???????????""""" " ########### #?????????????? | | ???????????""" """ #????????? #????????????? | | ????????????##% """ #?????????# #???????????? | | ?????????????## " ##????????? #???????????? | | ??????????????### ##????????? ???????????? | | ???????????????### #????????? ? ??????????? | | ???????????## "### #????????? ?? ?????????? | | ???????????# ""## # ##????????? ????????????? | | ???????# " #"""# #?????????? #?????????????? | | ???????## ####### #??????????????????????????? | | ????????#% #??#####?##??????????????????????????? | | ????????# ??????????????????????????????????????? | | ????????#????????????????????????????????????????? | | ?????????????????????????????????????????????????? | | ?????????????????????????????????????????????????? | | ?????????????????????????????????????????????????? | | ?????????????????????????????????????????????????? | | ?????????????????????????????????????????????????? | | ?????????????????????????????????????????????????? | | ?????????????????????????????????????????????????? | | ?????????????????????????????????????????????????? | | ?????????????????????????????????????????????????? | | ?????????????????????????????????????????????????? | | ?????????????????????????????????????????????????? | +----------------------------------------------------+ Best States ------------- Heat Dissipation 25 Energy Generation 10 Energy Capacity 250 Matter Stores 300 Matter Capacity 300 Sight Range 16 Terrain Scan Density 10 Resistance: KI 20 Resistance: TH 20 Resistance: EX 20 Resistance: EM 20 Resistance: I 20 Resistance: S 20 Resistance: P 20 Evasion (%) 55 Offensive Hacking 10 Item Schematics ----------------- None Robot Schematics ------------------ None Fabricated ------------ Nothing Repaired ---------- Nothing Alien Tech Used ----------------- None Achievements -------------- None Challenges ------------ None Game ------ Seed InsulationTeslaShockpuncher Manual? 0 Play Time 00:15:17 Cumulative 334.8 hours Start 2025.09.21 @ 04:43:12 End 2025.09.21 @ 04:58:15 Sessions 1 Manual Loads 0 Difficulty Adventurer Special Mode None Game No. 271 Rogue 0 Adventurer 208 Explorer 63 Win Type - Total 0 Types 0/0/0/0/0/0/0/0/0/0 Lore% 54 Gallery% 60 Achievement% 52 Wizard Run 0 Options --------- Layout 1 ASCII 0 Keyboard 0 Movement Mouse Keybinds 0 Fullscreen 2 Font 32/SmallcapsGlow Map View 50x35 Zoom Use 0% Tactical HUD 1 Map Filters NONE Filters NONE Steam 1 RUN: c4edd8e3-d61d-4908-a62a-3557184553c1